fUSD/lending_fUSD_20240620
["ID","MTS","AMOUNT","RATE_DAILY","PERIOD"]
[329949105,1718857842456,-500.0,0.00013698,2]
[329949107,1718857842465,-670.42,0.00013698,2]
[329949108,1718857842474,-801.12,0.00013698,2]
[329949109,1718857842484,-500.0,0.00013698,2]
[329949110,1718857842493,-500.0,0.00013698,2]
[329949111,1718857842503,-608.011418,0.00013698,2]
[329949112,1718857842512,-500.0,0.00013698,2]
[329949113,1718857842522,-500.0,0.00013698,2]
[329949114,1718857842531,-631.47218536,0.00013698,2]
[329949115,1718857842541,-472.44846213,0.00013698,2]
[329949116,1718857842550,-500.0,0.00013698,2]
[329949118,1718857842560,-259.9909184,0.00013698,2]
[329949120,1718857842569,-536.75,0.00013698,2]
[329949121,1718857842579,-184.25668567,0.00013698,2]
[329949122,1718857842592,-500.0,0.00013698,2]
[329949123,1718857842601,-500.0,0.00013698,2]
[329949124,1718857842611,-500.0,0.00013698,2]
[329949125,1718857842620,-500.0,0.00013698,2]
[329949126,1718857842631,-806.85,0.00013698,2]
[329949127,1718857842640,-500.0,0.00013698,2]
[329949128,1718857842649,-500.0,0.00013698,2]
[329949129,1718857842660,-500.0,0.00013698,2]
[329949130,1718857842670,-500.0,0.00013698,2]
[329949131,1718857842680,-500.0,0.00013698,2]
[329949132,1718857842689,-500.0,0.00013698,2]
[329949133,1718857842698,-500.0,0.00013698,2]
[329949134,1718857842707,-694.72,0.00013698,2]
[329949135,1718857842717,-632.94,0.00013698,2]
[329949136,1718857842725,-767.31,0.00013698,2]
[329949137,1718857842735,-642.95,0.00013698,2]
[329949138,1718857842744,-500.0,0.00013698,2]
[329949139,1718857842754,-600.74,0.00013698,2]
[329949140,1718857842762,-519.03751553,0.00013698,2]
[329949141,1718857842772,-500.0,0.00013698,2]
[329949142,1718857842782,-500.0,0.00013698,2]
[329949143,1718857842792,-500.0,0.00013698,2]
[329949144,1718857842801,-710.67,0.00013698,2]
[329949145,1718857842811,-500.0,0.00013698,2]
[329949146,1718857842821,-500.0,0.00013698,2]
[329949147,1718857842831,-927.78,0.00013698,2]
[329949148,1718857842840,-956.88,0.00013698,2]
[329949149,1718857842849,-630.46,0.00013698,2]
[329949150,1718857842859,-500.0,0.00013698,2]
[329949151,1718857842868,-186.53,0.00013698,2]
[329949152,1718857842878,-500.0,0.00013698,2]
[329949153,1718857842887,-610.36,0.00013698,2]
[329949154,1718857842897,-500.0,0.00013698,2]
[329949155,1718857842906,-543.08,0.00013698,2]
[329949156,1718857842915,-1058.82,0.00013698,2]
[329949157,1718857842924,-450.0,0.00013698,2]
[329949158,1718857842934,-500.0,0.00013698,2]
[329949159,1718857842943,-500.0,0.00013698,2]
[329949160,1718857842952,-500.0,0.00013698,2]
[329949161,1718857842961,-500.0,0.00013698,2]
[329949162,1718857842971,-500.0,0.00013698,2]
[329949163,1718857842980,-500.0,0.00013698,2]
[329949165,1718857842989,-588.58,0.00013698,2]
[329949167,1718857842999,-500.0,0.00013698,2]
[329949169,1718857843008,-500.0,0.00013698,2]
[329949171,1718857843018,-673.29,0.00013698,2]
[329949173,1718857843027,-500.0,0.00013698,2]
[329949175,1718857843036,-500.0,0.00013698,2]
[329949177,1718857843045,-500.0,0.00013698,2]
[329949179,1718857843054,-587.7,0.00013698,2]
[329949181,1718857843064,-670.18,0.00013698,2]
[329949183,1718857843073,-762.16,0.00013698,2]
[329949185,1718857843082,-752.41,0.00013698,2]
[329949187,1718857843091,-500.0,0.00013698,2]
[329949189,1718857843100,-500.0,0.00013698,2]
[329949191,1718857843110,-500.0,0.00013698,2]
[329949193,1718857843119,-500.0,0.00013698,2]
[329949195,1718857843128,-1607.17,0.00013698,2]
[329949197,1718857843137,-500.0,0.00013698,2]
[329949198,1718857843146,-500.0,0.00013698,2]
[329949199,1718857843155,-860.54,0.00013698,2]
[329949200,1718857843165,-500.0,0.00013698,2]
[329949202,1718857843414,-500.0,0.00013698,2]
[329949203,1718857843435,-500.0,0.00013698,2]
[329949204,1718857843454,-613.09,0.00013698,2]
[329949205,1718857843464,-724.94,0.00013698,2]
[329949206,1718857843473,-500.0,0.00013698,2]
[329949207,1718857843486,-500.0,0.00013698,2]
[329949208,1718857843498,-500.0,0.00013698,2]
[329949209,1718857843507,-500.0,0.00013698,2]
[329949210,1718857843517,-500.0,0.00013698,2]
[329949211,1718857843526,-500.0,0.00013698,2]
[329949212,1718857843536,-500.0,0.00013698,2]
[329949213,1718857843545,-500.0,0.00013698,2]
[329949214,1718857843554,-500.0,0.00013698,2]
[329949215,1718857843563,-500.0,0.00013698,2]
[329949216,1718857843572,-500.0,0.00013698,2]
[329949217,1718857843586,-500.0,0.00013698,2]
[329949218,1718857843596,-586.67,0.00013698,2]
[329949219,1718857843605,-500.0,0.00013698,2]
[329949220,1718857843614,-730.82,0.00013698,2]
[329949221,1718857843623,-940.39,0.00013698,2]
[329949222,1718857843632,-500.0,0.00013698,2]
[329949223,1718857843640,-500.0,0.00013698,2]
[329949224,1718857843649,-500.0,0.00013698,2]
[329949225,1718857843659,-500.0,0.00013698,2]
[329949226,1718857843670,-688.75,0.00013698,2]
[329949227,1718857843679,-500.0,0.00013698,2]
[329949228,1718857843688,-500.0,0.00013698,2]
[329949229,1718857843698,-500.0,0.00013698,2]
[329949230,1718857843708,-500.0,0.00013698,2]
[329949231,1718857843718,-500.0,0.00013698,2]
[329949232,1718857843727,-682.09,0.00013698,2]
[329949233,1718857843737,-791.33,0.00013698,2]
[329949234,1718857843747,-559.19,0.00013698,2]
[329949235,1718857843757,-500.0,0.00013698,2]
[329949236,1718857843766,-500.0,0.00013698,2]
[329949237,1718857843775,-500.0,0.00013698,2]
[329949238,1718857843784,-551.13049827,0.00013698,2]
[329949239,1718857843794,-500.0,0.00013698,2]
[329949240,1718857843803,-500.0,0.00013698,2]
[329949241,1718857843813,-500.0,0.00013698,2]
[329949242,1718857843823,-500.0,0.00013698,2]
[329949243,1718857843832,-572.54,0.00013698,2]
[329949244,1718857843841,-500.0,0.00013698,2]
[329949245,1718857843858,-557.49,0.00013698,2]
[329949246,1718857843879,-500.0,0.00013698,2]
[329949247,1718857843901,-500.0,0.00013698,2]
[329949248,1718857843921,-500.0,0.00013698,2]
[329949249,1718857843942,-500.0,0.00013698,2]
[329949250,1718857843964,-565.59,0.00013698,2]
[329949251,1718857843985,-500.0,0.00013698,2]
[329949252,1718857844009,-500.0,0.00013698,2]
[329949253,1718857844029,-980.94,0.00013698,2]
[329949254,1718857844050,-614.78973814,0.00013698,2]
[329949255,1718857844072,-500.0,0.00013698,2]
[329949256,1718857844086,-890.2,0.00013698,2]
[329949257,1718857844096,-500.0,0.00013698,2]
[329949258,1718857844105,-500.0,0.00013698,2]
[329949259,1718857844115,-515.84,0.00013698,2]
[329949260,1718857844124,-531.18,0.00013698,2]
[329949261,1718857844134,-500.0,0.00013698,2]
[329949262,1718857844143,-517.57853308,0.00013698,2]
[329949263,1718857844152,-1006.28,0.00013698,2]
[329949264,1718857844162,-635.43,0.00013698,2]
[329949265,1718857844171,-500.0,0.00013698,2]
[329949266,1718857844180,-500.0,0.00013698,2]
[329949267,1718857844189,-500.0,0.00013698,2]
[329949268,1718857844199,-500.0,0.00013698,2]
[329949269,1718857844208,-500.0,0.00013698,2]
[329949270,1718857844217,-500.0,0.00013698,2]
[329949271,1718857844227,-500.0,0.00013698,2]
[329949272,1718857844236,-544.96944846,0.00013698,2]
[329949273,1718857844245,-500.0,0.00013698,2]
[329949274,1718857844255,-500.0,0.00013698,2]
[329949275,1718857844265,-500.0,0.00013698,2]
[329949276,1718857844274,-500.0,0.00013698,2]
[329949277,1718857844283,-500.0,0.00013698,2]
[329949278,1718857844292,-500.0,0.00013698,2]
[329949279,1718857844302,-1229.69,0.00013698,2]
[329949280,1718857844311,-500.0,0.00013698,2]
[329949281,1718857844320,-722.86,0.00013698,2]
[329949282,1718857844330,-500.0,0.00013698,2]
[329949283,1718857844339,-500.0,0.00013698,2]
[329949284,1718857844348,-500.0,0.00013698,2]
[329949285,1718857844357,-500.0,0.00013698,2]
[329949286,1718857844367,-500.0,0.00013698,2]
[329949287,1718857844376,-658.05,0.00013698,2]
[329949288,1718857844386,-500.0,0.00013698,2]
[329949289,1718857844395,-329.83,0.00013698,2]
[329949290,1718857844403,-500.0,0.00013698,2]
[329949291,1718857844413,-500.0,0.00013698,2]
[329949292,1718857844423,-500.0,0.00013698,2]
[329949293,1718857844432,-500.0,0.00013698,2]
[329949294,1718857844441,-500.0,0.00013698,2]
[329949295,1718857844450,-500.0,0.00013698,2]
[329949296,1718857844459,-500.0,0.00013698,2]
[329949297,1718857844468,-1051.65,0.00013698,2]
[329949298,1718857844478,-500.0,0.00013698,2]
[329949299,1718857844487,-792.56,0.00013698,2]
[329949300,1718857844496,-500.0,0.00013698,2]
[329949301,1718857844505,-500.0,0.00013698,2]
[329949302,1718857844514,-500.0,0.00013698,2]
[329949303,1718857844524,-500.0,0.00013698,2]
[329949304,1718857844533,-1039.05,0.00013698,2]
[329949305,1718857844542,-500.0,0.00013698,2]
[329949306,1718857844552,-982.78,0.00013698,2]
[329949307,1718857844561,-616.16,0.00013698,2]
[329949308,1718857844571,-604.65,0.00013698,2]
[329949309,1718857844586,-500.0,0.00013698,2]
[329949310,1718857844595,-653.22,0.00013698,2]
[329949311,1718857844604,-500.0,0.00013698,2]
[329949312,1718857844614,-500.0,0.00013698,2]
[329949313,1718857844624,-500.0,0.00013698,2]
[329949314,1718857844633,-500.0,0.00013698,2]
[329949315,1718857844642,-500.0,0.00013698,2]
[329949316,1718857844651,-500.0,0.00013698,2]
[329949317,1718857844662,-1155.23,0.00013698,2]
[329949318,1718857844671,-808.25,0.00013698,2]
[329949319,1718857844681,-672.95,0.00013698,2]
[329949320,1718857844690,-500.0,0.00013698,2]
[329949321,1718857844699,-500.0,0.00013698,2]
[329949322,1718857844708,-693.07,0.00013698,2]
[329949323,1718857844717,-500.0,0.00013698,2]
[329949324,1718857844726,-527.22,0.00013698,2]
[329949325,1718857844736,-500.0,0.00013698,2]
[329949326,1718857844745,-500.0,0.00013698,2]
[329949327,1718857844755,-621.82,0.00013698,2]
[329949328,1718857844764,-500.0,0.00013698,2]
[329949329,1718857844773,-667.3,0.00013698,2]
[329949330,1718857844782,-500.0,0.00013698,2]
[329949331,1718857844791,-500.0,0.00013698,2]
[329949332,1718857844800,-1174.8,0.00013698,2]
[329949333,1718857844811,-500.0,0.00013698,2]
[329949334,1718857844821,-500.0,0.00013698,2]
[329949335,1718857844830,-500.0,0.00013698,2]
[329949336,1718857844840,-994.85,0.00013698,2]
[329949337,1718857844849,-500.0,0.00013698,2]
[329949338,1718857844859,-11900.41,0.00013698,2]
[329949339,1718857844868,-754.83,0.00013698,2]
[329949340,1718857844878,-1231.89,0.00013698,2]
[329949341,1718857844888,-500.0,0.00013698,2]
[329949342,1718857844898,-607.2,0.00013698,2]
[329949343,1718857844907,-500.0,0.00013698,2]
[329949344,1718857844917,-768.08,0.00013698,2]
[329949345,1718857844927,-1896.07,0.00013698,2]
[329949346,1718857844936,-996.89,0.00013698,2]
[329949347,1718857844945,-500.0,0.00013698,2]
[329949348,1718857844954,-1126.97,0.00013698,2]
[329949349,1718857844963,-500.0,0.00013698,2]
[329949350,1718857844973,-560.54,0.00013698,2]
[329949351,1718857844983,-500.0,0.00013698,2]
[329949352,1718857844992,-500.0,0.00013698,2]
[329949353,1718857845002,-762.16,0.00013698,2]
[329949354,1718857845011,-500.0,0.00013698,2]
[329949355,1718857845021,-2598.14,0.00013698,2]
[329949356,1718857845031,-500.0,0.00013698,2]
[329949357,1718857845040,-451.96220288,0.00013698,2]
[329949358,1718857845050,-646.69,0.00013698,2]
[329949359,1718857845059,-975.94,0.00013698,2]
[329949360,1718857845068,-370.93909625,0.00013698,2]
[329949361,1718857845078,-500.0,0.00013698,2]
[329949362,1718857845087,-1156.98,0.00013698,2]
[329949363,1718857845096,-1838.13,0.00013698,2]
[329949364,1718857845105,-500.0,0.00013698,2]
[329949365,1718857845115,-500.0,0.00013698,2]
[329949366,1718857845124,-500.0,0.00013698,2]
[329949367,1718857845133,-500.0,0.00013698,2]
[329949368,1718857845143,-1065.71,0.00013698,2]
[329949369,1718857845152,-3262.72,0.00013698,2]
[329949370,1718857845162,-606.93,0.00013698,2]
[329949371,1718857845171,-500.0,0.00013698,2]
[329949372,1718857845180,-500.0,0.00013698,2]
[329949373,1718857845190,-500.0,0.00013698,2]
[329949374,1718857845199,-500.0,0.00013698,2]
[329949375,1718857845208,-500.0,0.00013698,2]
[329949376,1718857845217,-785.22,0.00013698,2]
[329949377,1718857845227,-500.0,0.00013698,2]
[329949378,1718857845235,-37179.17,0.00013698,2]
[329949379,1718857845245,-2311.57,0.00013698,2]
[329949380,1718857845255,-682.48,0.00013698,2]
[329949381,1718857845265,-500.0,0.00013698,2]
[329949382,1718857845274,-651.74,0.00013698,2]
[329949383,1718857845283,-2036.85,0.00013698,2]
[329949384,1718857845292,-500.0,0.00013698,2]
[329949385,1718857845302,-759.8,0.00013698,2]
[329949386,1718857845311,-1451.45,0.00013698,2]
[329949387,1718857845320,-798.09,0.00013698,2]
[329949388,1718857845329,-500.0,0.00013698,2]
[329949389,1718857845339,-500.0,0.00013698,2]
[329949390,1718857845348,-687.72,0.00013698,2]
[329949391,1718857845357,-1471.78,0.00013698,2]
[329949392,1718857845366,-500.0,0.00013698,2]
[329949393,1718857845375,-7231.46,0.00013698,2]
[329949394,1718857845384,-500.0,0.00013698,2]
[329949395,1718857845393,-2385.78,0.00013698,2]
[329949396,1718857845402,-500.0,0.00013698,2]
[329949398,1718857845412,-500.0,0.00013698,2]
[329949399,1718857845421,-1006.12,0.00013698,2]
[329949402,1718857845430,-2616.46,0.00013698,2]
[329949404,1718857845439,-1109.48,0.00013698,2]
[329949406,1718857845448,-560.92,0.00013698,2]
[329949407,1718857845457,-1424.27,0.00013698,2]
[329949409,1718857845467,-1005.73,0.00013698,2]
[329949411,1718857845476,-12728.25,0.00013698,2]
[329949413,1718857845485,-500.0,0.00013698,2]
[329949415,1718857845494,-11243.16,0.00013698,2]
[329949417,1718857845504,-659.58,0.00013698,2]
[329949418,1718857845513,-500.0,0.00013698,2]
[329949420,1718857845523,-954.08,0.00013698,2]
[329949422,1718857845532,-500.0,0.00013698,2]
[329949423,1718857845541,-2347.34,0.00013698,2]
[329949425,1718857845551,-660.73,0.00013698,2]
[329949427,1718857845560,-500.0,0.00013698,2]
[329949429,1718857845569,-769.94,0.00013698,2]
[329949431,1718857845579,-35525.06,0.00013698,2]
[329949433,1718857845592,-2672.54,0.00013698,2]
[329949434,1718857845601,-5437.49,0.00013698,2]
[329949436,1718857845610,-500.0,0.00013698,2]
[329949438,1718857845620,-1881.44,0.00013698,2]
[329949440,1718857845629,-940.4,0.00013698,2]
[329949441,1718857845638,-2309.87,0.00013698,2]
[329949442,1718857845647,-363.07137055,0.00013698,2]
[329949443,1718857845656,-504.53,0.00013698,2]
[329949444,1718857845668,-500.0,0.00013698,2]
[329949445,1718857845678,-667.64,0.00013698,2]
[329949446,1718857845689,-500.0,0.00013698,2]
[329949447,1718857845699,-1824.84,0.00013698,2]
[329949448,1718857845708,-2393.31,0.00013698,2]
[329949449,1718857845718,-500.0,0.00013698,2]
[329949450,1718857845727,-500.0,0.00013698,2]
[329949451,1718857845737,-500.0,0.00013698,2]
[329949452,1718857845746,-500.0,0.00013698,2]
[329949453,1718857845756,-1396.05,0.00013698,2]
[329949454,1718857845765,-500.0,0.00013698,2]
[329949455,1718857845775,-500.0,0.00013698,2]
[329949456,1718857845784,-6018.19,0.00013698,2]
[329949457,1718857845793,-591.15,0.00013698,2]
[329949458,1718857845803,-998.47,0.00013698,2]
[329949459,1718857845813,-536.35,0.00013698,2]
[329949460,1718857845822,-500.0,0.00013698,2]
[329949461,1718857845832,-747.04,0.00013698,2]
[329949462,1718857845841,-500.0,0.00013698,2]
[329949463,1718857845850,-500.0,0.00013698,2]
[329949464,1718857845859,-592.46,0.00013698,2]
[329949465,1718857845869,-5400.41,0.00013698,2]
[329949466,1718857845879,-471.15508796,0.00013698,2]
[329949467,1718857845888,-2783.27,0.00013698,2]
[329949468,1718857845897,-3284.64,0.00013698,2]
[329949469,1718857845906,-500.0,0.00013698,2]
[329949470,1718857845916,-3527.49,0.00013698,2]
[329949471,1718857845925,-1311.85,0.00013698,2]
[329949472,1718857845934,-500.0,0.00013698,2]
[329949473,1718857845944,-500.0,0.00013698,2]
[329949474,1718857845953,-778.82,0.00013698,2]
[329949475,1718857845962,-4361.57,0.00013698,2]
[329949476,1718857845971,-500.0,0.00013698,2]
[329949477,1718857845981,-500.0,0.00013698,2]
[329949478,1718857845990,-656.7,0.00013698,2]
[329949479,1718857846000,-500.0,0.00013698,2]
[329949480,1718857846009,-500.0,0.00013698,2]
[329949481,1718857846018,-500.0,0.00013698,2]
[329949482,1718857846028,-4561.22,0.00013698,2]
[329949483,1718857846037,-500.0,0.00013698,2]
[329949484,1718857846046,-500.0,0.00013698,2]
[329949486,1718857846055,-500.0,0.00013698,2]
[329949487,1718857846065,-500.0,0.00013698,2]
[329949489,1718857846075,-831.11,0.00013698,2]
[329949490,1718857846084,-940.14,0.00013698,2]
[329949491,1718857846093,-690.88,0.00013698,2]
[329949492,1718857846102,-2394.86,0.00013698,2]
[329949493,1718857846111,-17447.83,0.00013698,2]
[329949494,1718857846120,-500.0,0.00013698,2]
[329949495,1718857846129,-500.0,0.00013698,2]
[329949496,1718857846138,-500.0,0.00013698,2]
[329949497,1718857846148,-976.63,0.00013698,2]
[329949498,1718857846156,-13242.78,0.00013698,2]
[329949499,1718857846165,-6724.27,0.00013698,2]
[329949500,1718857846174,-500.0,0.00013698,2]
[329949501,1718857846183,-677.39,0.00013698,2]
[329949502,1718857846192,-1473.52,0.00013698,2]
[329949503,1718857846201,-1106.18,0.00013698,2]
[329949504,1718857846210,-500.0,0.00013698,2]
[329949505,1718857846219,-500.0,0.00013698,2]
[329949506,1718857846229,-3958.93,0.00013698,2]
[329949507,1718857846238,-500.0,0.00013698,2]
[329949508,1718857846248,-500.0,0.00013698,2]
[329949509,1718857846257,-5919.9,0.00013698,2]
[329949510,1718857846267,-6393.12,0.00013698,2]
[329949511,1718857846276,-990.28,0.00013698,2]
[329949512,1718857846285,-567.64,0.00013698,2]
[329949513,1718857846294,-1976.89,0.00013698,2]
[329949514,1718857846303,-14524.04,0.00013698,2]
[329949515,1718857846313,-1199.7,0.00013698,2]
[329949516,1718857846322,-1584.24,0.00013698,2]
[329949517,1718857846331,-500.0,0.00013698,2]
[329949518,1718857846341,-532.39410988,0.00013698,2]
[329949519,1718857846350,-1499.79,0.00013698,2]
[329949520,1718857846359,-1254.02,0.00013698,2]
[329949521,1718857846368,-1509.15,0.00013698,2]
[329949522,1718857846377,-1770.69,0.00013698,2]
[329949523,1718857846386,-500.0,0.00013698,2]
[329949524,1718857846395,-603.38124709,0.00013698,2]
[329949525,1718857846405,-788.21,0.00013698,2]
[329949526,1718857846414,-1380.96,0.00013698,2]
[329949527,1718857846423,-1202.8,0.00013698,2]
[329949528,1718857846433,-874.54,0.00013698,2]
[329949529,1718857846442,-1266.93,0.00013698,2]
[329949530,1718857846451,-502.49546158,0.00013698,2]
[329949531,1718857846461,-7558.33,0.00013698,2]
[329949532,1718857846470,-3297.93,0.00013698,2]
[329949533,1718857846479,-4828.91,0.00013698,2]
[329949534,1718857846488,-556.32,0.00013698,2]
[329949535,1718857846498,-961.09,0.00013698,2]
[329949536,1718857846506,-703.14,0.00013698,2]
[329949537,1718857846515,-506.11831415,0.00013698,2]
[329949538,1718857846524,-501.34392476,0.00013698,2]
[329949539,1718857846534,-500.0,0.00013698,2]
[329949540,1718857846544,-809.16,0.00013698,2]
[329949541,1718857846553,-2699.56,0.00013698,2]
[329949542,1718857846562,-501.31936488,0.00013698,2]
[329949543,1718857846571,-807.88,0.00013698,2]
[329949544,1718857846583,-971.59,0.00013698,2]
[329949545,1718857846593,-500.0,0.00013698,2]
[329949546,1718857846602,-500.0,0.00013698,2]
[329949547,1718857846612,-500.0,0.00013698,2]
[329949548,1718857846621,-24105.6169398,0.00013698,2]
[329949549,1718857847386,-743.2830602,0.00013698,2]
[329949550,1718857847396,-304.93628257,0.00013698,2]
[329949551,1718857847970,-195.06371743,0.00013698,2]
[329949552,1718857847980,-4387.71,0.00013698,2]
[329949553,1718857847990,-1682.77,0.00013698,2]
[329949554,1718857848001,-834.45628257,0.00013698,2]
[329949555,1718857848026,-2163.20371743,0.00013698,2]
[329949556,1718857848035,-520.53,0.00013698,2]
[329949557,1718857848044,-1411.85114179,0.00013698,2]
[329949570,1718858655910,1064.85,0.00025,60]
[329949573,1718858687981,500.0,0.00026,90]
[329949574,1718858709862,500.0,0.00026,90]
[329949576,1718858732723,500.0,0.00026,90]
[329949577,1718858752692,500.0,0.00026,90]
[329949578,1718858772649,500.0,0.00026,90]
[329949579,1718858797303,500.0,0.00026,90]
[329949580,1718858820983,14555.0,0.00026,90]
[329949586,1718858859255,500.0,0.00026,90]
[329949607,1718859031931,-399.89,0.00010576,2]
[329949610,1718859031943,-1.72999996,0.00010747,2]
[329949616,1718859031954,-672.3424,0.00010747,2]
[329949620,1718859031966,-681.39069848,0.00010747,2]
[329949622,1718859031978,-785.3780883,0.00010747,2]
[329949624,1718859031988,-200.0,0.00012292,2]
[329949625,1718859031999,-250.0,0.00012454,2]
[329949626,1718859032012,-440.88,0.00012472,2]
[329949627,1718859032022,-779.84032352,0.00012472,2]
[329949628,1718859032034,-220.15967648,0.00012472,2]
[329949629,1718859032045,-379.14,0.00012472,2]
[329949630,1718859032055,-150.0,0.00012548,2]
[329949631,1718859032064,-278.16,0.0001257,2]
[329949632,1718859032075,-300.0,0.00012594,2]
[329949633,1718859032084,-1194.60649625,0.00012595,2]
[329949634,1718859032097,-7384.92556584,0.00012595,2]
[329949635,1718859032119,-1666.21666469,0.00012595,2]
[329949636,1718859032131,-741.8811006,0.00012595,2]
[329949637,1718859032143,-3065.73797262,0.00012595,2]
[329949638,1718859032152,-250.0,0.00012695,2]
[329949639,1718859032162,-186.35,0.00012755,2]
[329949640,1718859032172,-299.99,0.00012755,2]
[329949641,1718859032182,-399.89,0.0001284,2]
[329949642,1718859032191,-499.99,0.00012955,2]
[329949643,1718859032201,-511.272022,0.00012975,2]
[329949644,1718859032210,-474.860868,0.00012975,2]
[329949645,1718859032219,-511.272021,0.00012975,2]
[329949646,1718859032229,-430.76093731,0.00013013,2]
[329949647,1718859032238,-325.60491,0.00013131,2]
[329949648,1718859032248,-254.83573054,0.00013137,2]
[329949649,1718859032275,-256.43629146,0.00013137,2]
[329949650,1718859032284,-244.33637092,0.00013137,2]
[329949651,1718859032296,-230.52449708,0.00013137,2]
[329949652,1718859032305,-133.24006289,0.00013137,2]
[329949653,1718859032317,-378.03195811,0.00013137,2]
[329949654,1718859032327,-511.272022,0.00013299,2]
[329949655,1718859032337,-323.49601989,0.00013299,2]
[329949656,1718859032348,-151.36484811,0.00013299,2]
[329949657,1718859032358,-511.272021,0.00013299,2]
[329949658,1718859032368,-1535.19583473,0.000134,2]
[329949659,1718859032381,-260.80416527,0.000134,2]
[329949660,1718859032391,-511.272022,0.00013461,2]
[329949661,1718859032400,-474.860868,0.00013461,2]
[329949662,1718859032410,-511.272021,0.00013461,2]
[329949663,1718859032419,-314.74302252,0.00013498,2]
[329949664,1718859032429,-133743.172,0.00013498,2]
[329949665,1718859032437,-404.3819,0.00013498,2]
[329949666,1718859032447,-1000.0,0.000135,2]
[329949667,1718859032456,-3000.0,0.0001356,2]
[329949668,1718859032466,-221.95778915,0.00013596,2]
[329949669,1718859032475,-388.84447545,0.00013597,2]
[329949670,1718859032485,-178.26417708,0.00013598,2]
[329949671,1718859032494,-203.93691935,0.00013598,2]
[329949672,1718859032503,-168.68431455,0.00013598,2]
[329949673,1718859032514,-245000.0,0.00013598,2]
[329949674,1718859032524,-7118.5869,0.00013598,2]
[329949675,1718859032533,-16827.3594,0.00013598,2]
[329949676,1718859032543,-15895.5312,0.00013598,2]
[329949677,1718859032552,-5296.6213,0.00013598,2]
[329949678,1718859032561,-1000.0,0.00013598,2]
[329949679,1718859032570,-82741.3918,0.00013598,2]
[329949680,1718859032579,-7500.0,0.00013598,2]
[329949681,1718859032589,-1154.0,0.000136,2]
[329949682,1718859032598,-511.272022,0.00013623,2]
[329949683,1718859032608,-474.860868,0.00013623,2]
[329949684,1718859032617,-511.272021,0.00013623,2]
[329949685,1718859032626,-15161.94197915,0.0001369,2]
[329949686,1718859032636,-7709.83306394,0.00013696,2]
[329949687,1718859032645,-264.1328159,0.00013696,2]
[329949688,1718859032655,-216.48453512,0.00013696,2]
[329949689,1718859032664,-155.0,0.00013696,2]
[329949690,1718859032673,-211.27511926,0.00013696,2]
[329949691,1718859032683,-626.43651989,0.00013696,2]
[329949692,1718859032692,-2369.42831983,0.00013696,2]
[329949693,1718859032701,-155.37287871,0.00013696,2]
[329949694,1718859032710,-176.36687659,0.00013696,2]
[329949695,1718859032720,-786.3940397,0.00013696,2]
[329949696,1718859032730,-4296.3595835,0.00013696,2]
[329949697,1718859032740,-2823.75635135,0.00013696,2]
[329949698,1718859032749,-9222.56534114,0.00013696,2]
[329949699,1718859032759,-158.63435891,0.00013696,2]